[Event "Turkish Youth Championships 2023"]
[Site "Samsun"]
[Date "2023.05.19"]
[Round "1.8"]
[White "Kavri, Yusuf Eren"]
[Black "Zengin, Deha"]
[Result "1-0"]
[WhiteElo "2029"]
[BlackElo "1079"]
[Annotator "TA"]
[PlyCount "63"]
[EventDate "2023.05.19"]
[EventType "swiss"]
[EventCountry "TUR"]
[TimeControl "5400+30"]

{[%evp 11,63,0,37,20,25,16,16,4,3,11,17,22,35,35,39,27,39,23,32,22,39,35,127,123,139,144,145,145,151,143,148,144,167,166,162,138,217,188,246,236,273,243,461,443,456,457,455,454,454,444,447,445,2190,2112]} 1. d4 d5 2. c4 e6 3. Nc3 Nf6 4. Bg5 Be7 5. Nf3 O-O 6. e3 Re8 (6... h6 $5 {[%cal Rh6g5]} 7. Bxf6 Bxf6 $11) 7. cxd5 {D55: Queen's Gambit Declined: 4 Bg5 Be7: Lines without ...h6 and 6...h6 7 Bxf6.} exd5 8. Qc2 h6 9. Bh4 {The position is equal.} Be6 10. Bd3 Nbd7 11. O-O Nh5 12. Bxe7 Qxe7 {[#]} 13. Nb5 $146 ({Predecessor:} 13. Rab1 c5 14. dxc5 Nxc5 15. Rfd1 Nf6 16. Bb5 Red8 17. Nd4 Nce4 18. f3 Nd6 19. Bd3 {1-0 Jimenez Carrazoni,M (1563)-Zhao,Y (1360) Madrid Alcorcon op 1st 2022 (5)}) 13... Rec8 {[%emt 0:10:00]} 14. Rfc1 {[%emt 0:18:30]} ({Reject} 14. Nxc7 Ndf6 15. Rfc1 Ne8 16. Nxd5 (16. Bh7+ $2 Kh8 $19) 16... Bxd5 17. Qxc8 Rxc8 18. Rxc8 g6 $17) 14... c5 {[%emt 0:00:30]} 15. dxc5 {[%emt 0:01:30]} Rxc5 {[%emt 0:00:30]} 16. Qd2 {[%emt 0:00:30]} Rac8 {[%emt 0:00:30] White now steadily converts the win.} (16... a6 $14 17. Nbd4 Nhf6) 17. Nxa7 $16 {[%emt 0:00:00] White is more active.} Rxc1+ {[%emt 0:00:30]} 18. Rxc1 {[%emt 0:00:00]} Rxc1+ {[%emt 0:00:30]} 19. Qxc1 {[%emt 0:00:30]} Nc5 {[%emt 0:00:30]} 20. Be2 {[%emt 0:00:30]} Nf6 {[%emt 0:01:30]} 21. Nb5 {[%emt 0:00:00]} Nfe4 {[%emt 0:02:30]} 22. Nfd4 {[%emt 0:02:00]} Bd7 {[%emt 0:01:30]} 23. Qc2 {[%emt 0:01:30]} f5 {[%emt 0:02:30]} (23... b6 $16 24. a3 Qf6) 24. b4 {[%emt 0:00:30]} Na6 {[%emt 0:00:30] [#]} (24... Ne6 {was worth a try.}) 25. a3 $1 $18 {[%emt 0:00:30]} Kf7 {[%emt 0:00:30]} 26. Qb3 {[%emt 0:00:30]} Bc6 {[%emt 0:02:30]} (26... Nf6 27. g3 g6) 27. Nxc6 {[%emt 0:02:30] White is clearly winning.} ({Less strong is} 27. Nxf5 Qf6 $18) 27... bxc6 {[%emt 0:00:30]} 28. Nd4 {[%emt 0:00:00][%csl LRa6,LRc6,LRf5]} Nb8 {[%emt 0:01:30] [#]} 29. Nxc6 $1 {[%emt 0:01:00][%mdl 576] Remove Defender, Decoy} Nxc6 {[%emt 0:00:30]} 30. Qxd5+ {[%emt 0:00:30]} Qe6 {[%emt 0:00:30]} 31. Bc4 {[%emt 0:00:00][%csl LRc6,LRe6,LRf5]} Nd8 {[%emt 0:01:30]} (31... Qxd5 $142 32. Bxd5+ Ke7 33. Bxc6 Nc3) 32. Qxf5+ {[%emt 0:00:00][%mdl 64] Pin.   Weighted Error Value: White=0.08 (flawless) /Black=0.34} 1-0

[Event "Turkish Youth Championships 2023"]
[Site "Samsun"]
[Date "2023.05.19"]
[Round "1.9"]
[White "Aldeniz, Defne"]
[Black "Temizer, Umut"]
[Result "0-1"]
[WhiteElo "1063"]
[BlackElo "1973"]
[Annotator "TA"]
[PlyCount "72"]
[EventDate "2023.05.19"]
[EventType "swiss"]
[EventCountry "TUR"]
[TimeControl "5400+30"]

{[%evp 9,72,8,7,6,5,-11,4,0,0,19,12,0,0,0,0,0,7,-21,-22,-40,-50,-198,-133,-122,70,72,59,-14,38,-31,-10,-235,-241,-262,-268,-243,-252,-360,-298,-625,-627,-649,-497,-728,-730,-1245,-1222,-1240,-1242,-1222,-1209,-1243,-1198,-1410,-1398,-1479,-1480,-1696,-1670,-29980,-29982,-29982,-29983,-29998,-29999]} 1. e4 {[%emt 0:13:00]} c6 {[%emt 0:05:00]} 2. d4 {[%emt 0:00:30]} d5 {[%emt 0:00:30]} 3. e5 {[%emt 0:00:30]} Bf5 {[%emt 0:00:30]} 4. Nf3 {[%emt 0:00:30]} e6 {[%emt 0:00:30]} 5. Bd3 {[%emt 0:00:30]} Ne7 {[%emt 0:00:30][%cal Oc6c5]} 6. c3 {[%emt 0:00:30] B12: Caro-Kann: Advance Variation.} Nd7 {[%emt 0:00:30]} 7. Be3 {[%emt 0:00:30]} Qb6 {[%emt 0:00:30]} 8. b3 {[%emt 0:02:30] [#] The position is equal.} f6 $146 {[%emt 0:09:30]} ({Predecessor:} 8... a5 9. Nh4 a4 10. b4 Bxd3 11. Qxd3 Nc8 12. Nd2 Be7 13. Nhf3 Na7 14. O-O O-O {0-1 Puehringer,J (2075)-Antal,G (2524) Vienna op 2015 (1)}) 9. exf6 {[%emt 0:13:30]} gxf6 {[%emt 0:03:30]} 10. Nh4 {[%emt 0:02:30] [#] And now Qh5+ would win.} Bxd3 {[%emt 0:04:30]} 11. Qxd3 {[%emt 0:00:30]} O-O-O {[%emt 0:01:30][%cal Oe7g6]} 12. Nd2 {[%emt 0:02:30]} Qc7 {[%emt 0:01:30][%cal Oe7g6]} 13. c4 {[%emt 0:01:30][%cal Bc3c4,Bc4c5][%mdl 32]} Kb8 {[%emt 0:00:30][%cal Oe7g6]} 14. a4 {[%emt 0:08:30]} e5 {[%emt 0:01:30]} 15. b4 {[%emt 0:05:30]} ({Better is} 15. O-O $15) 15... exd4 {[%emt 0:01:30]} (15... dxc4 $19 16. Nxc4 Ng6) 16. Qxd4 $17 {[%emt 0:01:30]} Nc8 {[%emt 0:04:30]} ({Black should try} 16... c5 $1 $17 {[%cal Rc5d4]} 17. bxc5 Nc6) 17. c5 $14 {[%emt 0:06:30]} ({Reject} 17. cxd5 Ndb6 18. O-O (18. Qxf6 $2 {too greedy.} Bg7 $19 {[%mdl 64] Skewer}) 18... Nxd5 $15) 17... Rg8 {[%emt 0:07:30]} 18. a5 {[%emt 0:04:30]} (18. O-O $14) 18... a6 {[%emt 0:00:30]} (18... Ne5 $11 19. h3 a6) 19. Ndf3 {[%emt 0:00:30]} (19. O-O $14) 19... Re8 $15 {[%emt 0:02:30][%cal Bd8e8,Be8e4,Be4b4,Bb4b1,Bb1h1][%mdl 32] aiming for ...Re4.} 20. Kd1 $2 {[%emt 0:03:30] White is now going downhill.} (20. Qd2 $11) 20... Re4 $19 {[%emt 0:00:30]} 21. Qc3 {[%emt 0:00:30]} Na7 {[%emt 0:01:30]} 22. g3 {[%emt 0:05:30]} Nb5 {[%emt 0:03:30] Prevents Nd4} 23. Qb2 {[%emt 0:00:30]} (23. Qb3 {might work better.}) 23... Rgg4 {[%emt 0:03:30]} 24. h3 $2 {[%emt 0:01:30]} (24. Bd2) 24... Rxb4 {[%emt 0:01:30]} 25. Qd2 {[%emt 0:01:30]} Rgc4 {[%emt 0:01:30]} 26. Rc1 {[%emt 0:01:30]} (26. Ke1 $142) 26... Rxc1+ {[%emt 0:00:30]} 27. Kxc1 {[%emt 0:00:00]} Qxa5 {[%emt 0:00:30] [#] ( -> ...Qa1+)} 28. Kd1 {[%emt 0:02:00]} Rb1+ {[%emt 0:00:30]} 29. Ke2 {[%emt 0:00:00]} Qxd2+ {[%emt 0:00:30]} (29... Rxh1 $2 30. Qxa5 Kc8 31. Nd4 Nxd4+ 32. Bxd4 $18) 30. Kxd2 {[%emt 0:01:00]} Rxh1 {[%emt 0:00:00]} 31. Ne1 {[%emt 0:00:30]} Bxc5 {[%emt 0:00:00] ...Bb4+ is the strong threat.} 32. Bf4+ {[%emt 0:00:30]} Ka7 {[%emt 0:00:00] White must now prevent ...Bb4+.} 33. Ke2 {[%emt 0:00:00]} Nd4+ {[%emt 0:00:00]} 34. Kd2 {[%emt 0:00:00]} Bb4+ {[%emt 0:00:30] Black mates.} 35. Ke3 {[%emt 0:00:30]} Rxe1+ {[%emt 0:00:30]} 36. Kd3 {[%emt 0:00:30]} Nc5+ {[%emt 0:00:00] Weighted Error Value: White=1.05/Black=0.24 (precise)} 0-1

[Event "Turkish Youth Championships 2023"]
[Site "Samsun"]
[Date "2023.05.19"]
[Round "1.10"]
[White "Demirbas, Emre"]
[Black "Oksuzomer, Enes"]
[Result "1-0"]
[WhiteElo "2013"]
[BlackElo "1273"]
[Annotator "TA"]
[PlyCount "101"]
[EventDate "2023.05.19"]
[EventType "swiss"]
[EventCountry "TUR"]
[TimeControl "5400+30"]

{[%evp 9,101,7,10,5,12,0,33,0,18,-10,39,31,97,79,78,77,81,32,122,146,121,130,157,160,148,161,158,139,360,363,352,344,405,372,424,282,278,274,275,288,288,279,279,281,441,443,420,401,441,411,414,389,510,530,525,526,535,507,491,457,548,525,536,506,827,827,820,801,1272,1185,1075,993,1156,1096,29984,29985,29986,29987,29987,29988,29991,29988,29989,29990,29992,29987,29987,29986,29986,29984,29984,29982,29980,29979]} 1. Nf3 d5 2. c4 c6 3. b3 Nf6 4. Bb2 Bf5 5. g3 Nbd7 6. Bg2 {A12: English Opening: 1...c6 with b3 by White.} Qb6 7. d3 e6 8. O-O {White is slightly better.} h6 {[#]} 9. a3 $146 ({Predecessor:} 9. Qc2 Bc5 10. Nc3 Qa6 11. a3 O-O 12. e4 Bh7 13. Qe2 Kh8 14. b4 Bb6 15. a4 Bd8 16. a5 {½-½ Burschowsky,M (2225)-Leeb,S (2267) AUT-chT2W 2223 2022 (3.2)}) 9... a5 (9... dxc4 $11 10. dxc4 a5) 10. Nbd2 $14 Bd6 (10... Bh7 $14) 11. cxd5 $16 cxd5 {[%emt 0:15:00] [#]} 12. e4 $1 {[%emt 0:10:30]} Bg4 {[%emt 0:03:30]} 13. Re1 {[%emt 0:02:30]} (13. exd5 $16 exd5 14. Re1+ Be7 15. Bd4 (15. Qe2 O-O $11)) 13... dxe4 {[%emt 0:02:30]} ({Black should try} 13... Bc5 $14 14. d4 Be7) 14. Nc4 $1 $36 {[%emt 0:07:30][%mdl 2048] Keeping Black busy.} Qa6 {[%emt 0:05:30]} 15. dxe4 {[%emt 0:03:30]} Be7 {[%emt 0:00:30] [#]} 16. e5 $1 {[%emt 0:03:30] White is more active.} Nd5 {[%emt 0:01:30]} 17. Qd4 {[%emt 0:02:30]} Bxf3 {[%emt 0:01:30]} 18. Bxf3 {[%emt 0:00:00]} Bc5 $2 {[%emt 0:00:30] This move loses the game for Black.} (18... O-O $16) 19. Qg4 $18 {[%emt 0:01:00]} O-O {[%emt 0:03:30]} 20. Bxd5 {[%emt 0:01:30]} exd5 {[%emt 0:00:30]} 21. Nd6 {[%emt 0:02:30][%cal Oe5e6] Black must now prevent e6!} f5 {[%emt 0:03:30]} 22. Nxf5 {[%emt 0:03:30][%csl Gf5][%cal Rg4g7]} Bxf2+ {[%emt 0:01:30] [#]} 23. Kg2 $1 {[%emt 0:00:30][%csl Gf5][%cal Rg4g7]} (23. Kxf2 Rxf5+ 24. Kg1 (24. Qxf5 Rf8 $11) 24... Qe6 $11) 23... Rxf5 {[%emt 0:04:30]} 24. Qxf5 {[%emt 0:00:00][%cal Oe5e6] Threatens to win with e6!} Bxe1 {[%emt 0:02:30]} 25. Rxe1 {[%emt 0:00:00]} Qc6 {[%emt 0:01:30]} 26. e6 {[%emt 0:01:30]} Rf8 {[%emt 0:04:30] [#] Repels Qf7+} (26... d4+ $142 27. Kg1 Nf6 28. Bxd4 Qd5) 27. exd7 $1 {[%emt 0:01:30][%cal Of5f8] White wants to mate with Qxf8+!} Rxf5 {[%emt 0:00:30]} 28. d8=Q+ {[%emt 0:00:30]} (28. d8=B Qc2+ 29. Kh3 Qxb2 30. Rg1 Rh5+ 31. Bh4 Qe2 32. Rc1 g5 33. Rc8+ Kf7 34. Rc7+ Kg6) 28... Rf8 {[%emt 0:00:30]} 29. Qe7 {[%emt 0:01:30][%csl Gb2][%cal Re7g7]} ({Less strong is} 29. Qxa5 Qc2+ 30. Kh1 Qxb2 $14) 29... d4+ {[%emt 0:00:30]} 30. Qe4 {[%emt 0:00:30]} d3 {[%emt 0:00:30]} 31. Qxc6 {[%emt 0:00:30]} bxc6 {[%emt 0:00:30][%mdl 4096] Endgame KRB-KR} 32. Rd1 {[%emt 0:00:30]} Re8 {[%emt 0:00:30]} 33. Rd2 {[%emt 0:00:30]} ({Inferior is} 33. Rxd3 Re2+ 34. Kf3 Rxb2 $11) 33... c5 {[%emt 0:00:30]} 34. a4 {[%emt 0:00:30]} (34. Rxd3 Re2+ 35. Kh3 Rxb2 $14) 34... Rb8 {[%emt 0:00:30]} 35. Rxd3 {[%emt 0:00:30]} c4 {[%emt 0:00:30]} 36. Rd7 {[%emt 0:00:30]} ({Not} 36. bxc4 Rxb2+ 37. Kf3 Rb4 $14) 36... Rxb3 {[%emt 0:00:30]} (36... g5 $142 37. Rg7+ Kf8) 37. Bxg7 {[%emt 0:00:30]} Ra3 {[%emt 0:01:30]} 38. Bxh6 {[%emt 0:00:30] Hoping for h4.} Rxa4 {[%emt 0:00:30]} 39. Rg7+ {[%emt 0:00:30]} Kh8 {[%emt 0:00:30]} 40. Rc7 {[%emt 0:00:30]} Ra2+ {[%emt 0:01:30]} 41. Kh3 {[%emt 0:00:00] Threatening mate with g4.} Rc2 {[%emt 0:00:00]} 42. g4 {[%emt 0:00:00][%cal Bg3g4,Bg4g5][%mdl 32] White mates.} Rc3+ {[%emt 0:00:00]} 43. Kh4 {[%emt 0:00:30]} Rc2 {[%emt 0:00:00]} 44. Kg5 {[%emt 0:00:00]} Rd2 {[%emt 0:00:00]} 45. Kh5 {[%emt 0:00:00]} Rd5+ {[%emt 0:01:30]} 46. g5 {[%emt 0:00:30]} a4 {[%emt 0:00:00]} 47. Rxc4 {[%emt 0:00:30]} a3 {[%emt 0:00:00]} 48. Ra4 {[%emt 0:00:00]} Kg8 {[%emt 0:00:00]} 49. Rxa3 {[%emt 0:00:00]} Kf7 {[%emt 0:00:00]} 50. Ra7+ {[%emt 0:00:30]} Ke6 {[%emt 0:00:30]} 51. Kg6 {[%emt 0:00:00] Weighted Error Value: White=0.15 (very precise) /Black=0.43} 1-0

[Event "Turkish Youth Championships 2023"]
[Site "Samsun"]
[Date "2023.05.19"]
[Round "1.17"]
[White "Bakirci, Hazar"]
[Black "Ozgun, Yigit Deniz"]
[Result "0-1"]
[WhiteElo "1035"]
[BlackElo "1747"]
[Annotator "COMBH"]
[PlyCount "58"]
[EventDate "2023.05.19"]
[EventType "swiss"]
[EventCountry "TUR"]
[TimeControl "5400+30"]
[WhiteClock "1:07:00"]

1. c4 e6 2. Nc3 d5 3. e3 Nf6 4. g3 c5 5. cxd5 exd5 6. Bg2 Nc6 7. Nf3 d4 8. exd4 cxd4 9. Ne2 {[%emt 1:35:00]} d3 {[%emt 1:35:00]} 10. Nf4 {[%emt 0:00:30]} Qe7+ {[%emt 0:00:30]} 11. Kf1 {[%emt 0:00:30]} Bf5 {[%emt 0:00:30]} 12. Qe1 {[%emt 0:00:30]} O-O-O {[%emt 0:00:30]} 13. Qxe7 {[%emt 0:00:30]} Bxe7 {[%emt 0:00:30]} 14. b3 {[%emt 0:00:30]} h6 {[%emt 0:00:30]} 15. Bb2 {[%emt 0:00:30]} g5 {[%emt 0:00:30]} 16. Rc1 {[%emt 0:00:30]} gxf4 {[%emt 0:00:30]} 17. Ne5 {[%emt 0:00:30]} Be6 {[%emt 0:00:30]} 18. Nxc6 {[%emt 0:00:30]} bxc6 {[%emt 0:00:30]} 19. Bxc6 {[%emt 0:00:30]} Kc7 {[%emt 0:00:30]} 20. Be5+ {[%emt 0:00:30]} Kb6 {[%emt 0:00:30]} 21. Bxf4 {[%emt 0:00:30]} Bc5 {[%emt 0:00:30]} 22. Be5 {[%emt 0:00:30]} Bd4 {[%emt 0:00:30]} 23. Bf4 {[%emt 0:00:30]} Rc8 {[%emt 0:00:30]} 24. Kg2 {[%emt 0:00:30]} Rxc6 {[%emt 0:00:30]} 25. Rxc6+ {[%emt 0:00:30]} Kxc6 {[%emt 0:00:30]} 26. Rc1+ {[%emt 0:00:30]} Kb6 {[%emt 0:00:30]} 27. Rc7 {[%emt 0:00:30]} Nd5 {[%emt 0:00:30]} 28. Rc1 {[%emt 0:00:30]} Nxf4+ {[%emt 0:00:30]} 29. gxf4 {[%emt 0:00:30]} Rg8+ {[%emt 0:00:00]} 0-1

[Event "Turkish Youth Championships 2023"]
[Site "Samsun"]
[Date "2023.05.19"]
[Round "1.18"]
[White "Coskun, Emre"]
[Black "Sener, Ata Yigit"]
[Result "1-0"]
[WhiteElo "1750"]
[BlackElo "1459"]
[Annotator "COMBH"]
[PlyCount "81"]
[EventDate "2023.05.19"]
[EventType "swiss"]
[EventCountry "TUR"]
[TimeControl "5400+30"]

1. e4 e6 2. d3 d5 3. Nd2 c6 4. g3 Nd7 5. Bg2 Ngf6 6. Ngf3 dxe4 7. dxe4 e5 8. O-O {[%emt 0:11:30]} Bc5 {[%emt 0:14:30]} 9. b3 {[%emt 0:07:30]} O-O {[%emt 0:04:30]} 10. Bb2 {[%emt 0:00:30]} Qc7 {[%emt 0:00:30]} 11. Qe2 {[%emt 0:05:30]} Re8 {[%emt 0:04:30]} 12. h3 {[%emt 0:01:30]} h6 {[%emt 0:01:30]} 13. Rfd1 {[%emt 0:00:30]} b5 {[%emt 0:01:30]} 14. g4 {[%emt 0:03:30]} Bb7 {[%emt 0:11:30]} 15. Nh4 {[%emt 0:04:30]} g6 {[%emt 0:00:30]} 16. Ndf3 {[%emt 0:02:30]} Nh7 {[%emt 0:03:30]} 17. c4 {[%emt 0:17:30]} a6 {[%emt 0:00:30]} 18. Rac1 {[%emt 0:06:30]} b4 {[%emt 0:02:30]} 19. Qd2 {[%emt 0:06:30]} Ndf6 {[%emt 0:00:30]} 20. Ne1 {[%emt 0:00:30]} Rad8 {[%emt 0:00:30]} 21. Nd3 {[%emt 0:04:30]} Kg7 {[%emt 0:03:30]} 22. Qe1 {[%emt 0:00:30]} Rxd3 {[%emt 0:03:30]} 23. Rxd3 {[%emt 0:00:30]} Ng5 {[%emt 0:01:30]} 24. Rcd1 {[%emt 0:01:30]} Ne6 {[%emt 0:01:30]} 25. Bc1 {[%emt 0:00:30]} Qb6 {[%emt 0:00:30]} 26. Nf3 {[%emt 0:01:30]} Nd4 {[%emt 0:02:30]} 27. Bb2 {[%emt 0:00:30]} Nxf3+ {[%emt 0:02:30]} 28. Bxf3 {[%emt 0:00:00]} a5 {[%emt 0:00:30]} 29. Qd2 {[%emt 0:04:00]} Re7 {[%emt 0:02:30]} 30. Kg2 {[%emt 0:03:30]} Bc8 {[%emt 0:02:30]} 31. g5 {[%emt 0:01:05]} hxg5 {[%emt 0:02:30]} 32. Qxg5 {[%emt 0:00:41]} Qc7 {[%emt 0:00:30]} 33. Bc1 {[%emt 0:02:46]} Ng8 {[%emt 0:00:30]} 34. Be3 {[%emt 0:00:30]} Bxe3 {[%emt 0:00:30]} 35. fxe3 {[%emt 0:00:30]} f6 {[%emt 0:00:30]} 36. Qg3 {[%emt 0:01:17]} Rd7 {[%emt 0:00:30]} 37. Bg4 {[%emt 0:00:41]} Rxd3 {[%emt 0:00:30]} 38. Rxd3 {[%emt 0:00:03]} Ne7 {[%emt 0:00:30]} 39. Bxc8 {[%emt 0:02:48]} Nxc8 {[%emt 0:01:30]} 40. Qg4 {[%emt 0:00:08]} Kh6 {[%emt 0:00:30]} 41. Rd7 {[%emt 0:00:13]} 1-0

[Event "Turkish Youth Championships 2023"]
[Site "Samsun"]
[Date "2023.05.19"]
[Round "1.19"]
[White "Kilic, Sekip"]
[Black "Atis, Hasan"]
[Result "0-1"]
[WhiteElo "1124"]
[BlackElo "1890"]
[Annotator "COMBH"]
[PlyCount "67"]
[EventDate "2023.05.19"]
[EventType "swiss"]
[EventCountry "TUR"]
[TimeControl "5400+30"]
[BlackClock "0:41:00"]

1. e4 c5 2. Nf3 Nc6 3. Bc4 e6 4. Nc3 a6 {[%emt 0:06:30]} 5. a4 {[%emt 0:24:00]} g6 {[%emt 0:01:30]} 6. d4 {[%emt 0:11:30]} cxd4 {[%emt 0:00:00]} 7. Nxd4 {[%emt 0:00:00]} Bg7 {[%emt 0:00:00]} 8. Nxc6 {[%emt 0:05:00]} bxc6 {[%emt 0:00:30]} 9. Qd6 {[%emt 0:02:30]} Qa5 {[%emt 0:01:30]} 10. Bd2 {[%emt 0:12:30]} Qe5 {[%emt 0:01:30]} 11. Bf4 {[%emt 0:10:30]} Qxd6 {[%emt 0:14:30]} 12. Bxd6 {[%emt 0:00:30]} a5 {[%emt 0:00:30]} 13. e5 {[%emt 0:04:30]} f6 {[%emt 0:04:30]} 14. f4 {[%emt 0:04:30]} fxe5 {[%emt 0:02:30]} 15. fxe5 {[%emt 0:01:30]} Nh6 {[%emt 0:00:30]} 16. O-O {[%emt 0:09:19]} Nf7 {[%emt 0:02:30]} 17. Rxf7 {[%emt 0:07:17]} Kxf7 {[%emt 0:00:30]} 18. Ne4 {[%emt 0:00:33]} Bf8 {[%emt 0:07:30]} 19. Bc7 {[%emt 0:04:28]} Kg7 {[%emt 0:01:30]} 20. Rd1 {[%emt 0:00:52]} Be7 {[%emt 0:01:30]} 21. Bb6 {[%emt 0:00:21]} Rf8 {[%emt 0:02:30]} 22. Re1 {[%emt 0:01:06]} Ba6 {[%emt 0:02:30]} 23. Bb3 {[%emt 0:00:05]} Bc8 {[%emt 0:04:30]} 24. Bc4 {[%emt 0:00:30]} Kg8 {[%emt 0:00:30]} 25. h3 {[%emt 0:00:22]} Ba6 {[%emt 0:01:30]} 26. Bb3 {[%emt 0:00:30]} Rf5 {[%emt 0:00:30]} 27. Ng3 {[%emt 0:00:38]} Bh4 {[%emt 0:03:30]} 28. Nxf5 {[%emt 0:01:25]} Bxe1 {[%emt 0:00:00]} 29. Nh6+ {[%emt 0:00:02]} Kg7 {[%emt 0:00:00]} 30. Ng4 {[%emt 0:00:18]} Bg3 {[%emt 0:00:30]} 31. Bd4 {[%emt 0:00:43]} Rf8 {[%emt 0:01:30]} 32. c4 {[%emt 0:00:14]} Bxc4 {[%emt 0:01:30]} 33. Bxc4 {[%emt 0:01:07]} Rf4 {[%emt 0:00:00]} 34. Bxe6 {[%emt 0:00:40]} 0-1

[Event "Turkish Youth Championships 2023"]
[Site "Samsun"]
[Date "2023.05.20"]
[Round "2.1"]
[White "Isik, Alparslan"]
[Black "Anakok, Deniz"]
[Result "1-0"]
[WhiteElo "2451"]
[BlackElo "1448"]
[Annotator "TA"]
[PlyCount "81"]
[EventDate "2023.05.19"]
[EventType "swiss"]
[EventCountry "TUR"]
[TimeControl "5400+30"]

{[%evp 20,81,25,21,45,7,33,22,27,37,66,47,134,75,159,143,146,133,225,225,305,327,315,322,353,305,294,287,304,294,452,434,440,392,512,513,502,434,492,483,545,298,289,264,287,288,270,266,370,406,406,403,535,548,793,771,742,520,505,516,519,510,623,622]} 1. Nf3 {[%emt 0:01:00]} Nf6 {[%emt 0:01:00]} 2. g3 {[%emt 0:00:30]} d5 {[%emt 0:00:30]} 3. Bg2 {[%emt 0:00:30]} c6 {[%emt 0:00:30]} 4. c4 {[%emt 0:00:30]} Bf5 {[%emt 0:00:30]} 5. O-O {[%emt 0:03:30]} e6 {[%emt 0:00:30]} 6. cxd5 {[%emt 0:02:30]} cxd5 {[%emt 0:02:30]} 7. Qb3 {[%emt 0:00:30]} Qb6 {[%emt 0:05:30]} 8. Qxb6 {[%emt 0:00:30]} axb6 {[%emt 0:00:30]} 9. Nc3 {[%emt 0:00:30]} Nc6 {[%emt 0:00:30]} 10. d3 {[%emt 0:00:30]} Bc5 {[%emt 0:04:30]} 11. Bf4 {[%emt 0:13:30]} Ke7 {[%emt 0:10:30] [#] A11: English Opening: 1...c6.} 12. Nb5 $146 {[%emt 0:04:30]} ({Predecessor:} 12. a3 Rhc8 13. b4 Bd6 14. Bd2 Bg4 15. Nb5 Bxf3 16. Bxf3 Be5 17. Rac1 Nd4 18. Nxd4 Bxd4 19. Rxc8 Rxc8 {1-0 Gines Esteo,P (2413)-Lopez Martinez,J (2520) Castelldefels Llobregat op 2nd 2021 (2)}) 12... Ra5 {[%emt 0:06:30]} 13. a4 {[%emt 0:00:30]} Rha8 {[%emt 0:03:30] The position is equal.} 14. b3 {[%emt 0:00:00]} Ne8 {[%emt 0:05:30]} 15. Rac1 {[%emt 0:01:00]} Bd6 {[%emt 0:10:30]} (15... Bg4 $14) 16. Be3 {[%emt 0:12:30]} (16. Bd2 $142) 16... R5a6 {[%emt 0:04:30]} ({Black should try} 16... Bc5) 17. Nfd4 $16 {[%emt 0:00:30] White is much more active.} Nxd4 {[%emt 0:03:30]} 18. Bxd4 {[%emt 0:00:00]} f6 {[%emt 0:03:30]} (18... e5 $16 {is a better defense.}) 19. e4 $18 {[%emt 0:00:00]} dxe4 {[%emt 0:01:30]} 20. dxe4 {[%emt 0:00:30]} Bg6 {[%emt 0:00:30]} 21. Nxd6 {[%emt 0:01:30]} Kxd6 {[%emt 0:03:30]} 22. Rfd1 {[%emt 0:00:30][%csl LRb6,LRf6][%cal Rd4f6] [#]} Ke7 {[%emt 0:00:30]} 23. e5 {[%emt 0:00:30]} fxe5 {[%emt 0:02:30]} 24. Bxe5 {[%emt 0:00:30]} Ra5 {[%emt 0:00:30]} (24... Bh5 $142 25. Rd2 Rd8) 25. Bc3 {[%emt 0:00:00]} ({Weaker is} 25. Bxb7 R8a7 $16) 25... Rf5 {[%emt 0:00:30]} 26. Bxb7 {[%emt 0:02:00] A strong pair of Bishops.} Ra7 {[%emt 0:01:30] Black is weak on the dark squares} 27. Bb4+ {[%emt 0:00:30]} Kf6 {[%emt 0:00:30]} 28. Rd7 {[%emt 0:00:30]} Bh5 {[%emt 0:00:30]} 29. Bc3+ {[%emt 0:04:30]} Kg6 {[%emt 0:03:30]} 30. Bc6 {[%emt 0:00:00]} Rxd7 {[%emt 0:00:30]} 31. Bxd7 {[%emt 0:00:00]} Kf7 {[%emt 0:00:30]} 32. Re1 {[%emt 0:00:30]} Nc7 {[%emt 0:00:30] [#]} 33. Be5 $1 {[%emt 0:00:30]} Nd5 {[%emt 0:01:30]} 34. Bd4 {[%emt 0:00:30]} Nc7 {[%emt 0:00:30]} 35. Bxb6 {[%emt 0:00:30]} Ke7 {[%emt 0:00:30]} 36. Bc8 {[%emt 0:00:00] White is clearly winning.} Kd8 {[%emt 0:01:30]} 37. Bxe6 {[%emt 0:00:00]} Rf6 {[%emt 0:00:00]} 38. Bxc7+ {[%emt 0:00:30]} Kxc7 {[%emt 0:00:00]} 39. Bc4 {[%emt 0:00:00]} Kd8 {[%emt 0:00:30]} 40. Re6 {[%emt 0:01:00]} Rf8 {[%emt 0:00:30]} 41. f4 {[%emt 0:00:30] White took control after the opening.   Weighted Error Value: White=0.32/Black=0.45} 1-0